bitfinex/quotes_BTCUSD_20251120
["timestamp","ask_amount","ask_price","bid_price","bid_amount"]
[1763651152002,0.22006611,90882.0,90871.0,0.05829115]
[1763651152203,0.22007677,90878.0,90875.0,0.01125187]
[1763651152398,0.220068,90881.0,90875.0,0.01125187]
[1763651152399,0.22007322,90879.0,90877.0,0.01100388]
[1763651152611,0.03926,90899.0,90884.0,0.01100303]
[1763651152820,0.00376,90898.0,90893.0,0.24204679]
[1763651153028,0.01205,90899.0,90895.0,0.0110017]
[1763651153228,0.00376,90897.0,90894.0,0.02200959]
[1763651153430,0.2310358,90895.0,90869.0,0.05829115]
[1763651153692,0.00376,90897.0,90894.0,0.02200959]
[1763651153908,0.02953265,90954.0,90894.0,0.02200959]
[1763651153909,0.02304843,90922.0,90907.0,0.01100025]
[1763651154114,0.02304843,90922.0,90894.0,0.02200959]
[1763651154115,0.2199736,90920.0,90916.0,0.03300875]
[1763651154321,0.00376,90921.0,90916.0,0.03300875]
[1763651154322,0.00376,90921.0,90919.0,0.21997532]
[1763651154931,0.22373163,90921.0,90916.0,0.03300875]
[1763651155169,0.22373252,90921.0,90916.0,0.02200959]
[1763651155380,0.21997475,90920.0,90917.0,0.01099904]
[1763651155573,0.2199796,90918.0,90916.0,0.02200959]
[1763651155775,0.00376,90921.0,90918.0,0.01099892]
[1763651156180,0.00376,90921.0,90918.0,0.23097598]
[1763651156388,0.00376,90921.0,90919.0,0.21997528]
[1763651157257,0.01205,90938.0,90935.0,0.01099686]
[1763651157471,0.01205,90938.0,90932.0,0.01099722]
[1763651157472,0.22369311,90937.0,90934.0,0.01099698]
[1763651157673,0.00376,90937.0,90935.0,0.02200959]
[1763651157876,0.00376,90937.0,90935.0,0.24194572]
[1763651158503,0.00376,90945.0,90943.0,0.01099589]
[1763651158720,0.00376,90945.0,90935.0,0.02200959]
[1763651158910,0.01099698,90934.0,90916.0,0.02200959]
[1763651159053,0.21994699,90931.0,90930.0,0.02200959]
[1763651159459,0.25843699,90931.0,90930.0,0.02200959]
[1763651159861,0.21998086,90917.0,90916.0,0.02200959]
[1763651160081,0.23203086,90917.0,90916.0,0.02200959]
[1763651160324,0.01205,90917.0,90916.0,0.02200959]
[1763651160758,0.01205,90917.0,90892.0,0.05829115]
[1763651160759,0.0109994,90914.0,90892.0,0.05829115]
[1763651160972,0.01205,90895.0,90882.0,0.2200643]
[1763651161190,0.01100073,90903.0,90892.0,0.01100206]
[1763651161191,0.00376,90902.0,90892.0,0.01100206]
[1763651161401,0.01205,90895.0,90892.0,0.01100206]
[1763651161627,0.01205,90895.0,90889.0,0.01100243]
[1763651161842,0.01205,90895.0,90887.0,0.01100267]
[1763651162056,0.2200033,90908.0,90900.0,0.0110011]
[1763651162281,0.01100097,90901.0,90894.0,0.02200959]
[1763651162493,0.01571,90900.0,90894.0,0.02200959]
[1763651162728,0.01571,90900.0,90898.0,0.22002645]
[1763651162957,0.02787,90907.0,90904.0,0.01100061]
[1763651163188,0.00376,90907.0,90900.0,0.0110011]
[1763651163409,0.00376,90907.0,90906.0,0.22000748]
[1763651163910,0.00376,90907.0,90904.0,0.01100061]
[1763651164158,0.00376,90907.0,90894.0,0.08030074]
[1763651164159,0.22001422,90904.0,90898.0,0.01100134]
[1763651164404,0.01100061,90904.0,90899.0,0.01100122]
[1763651164628,0.22001784,90902.0,90895.0,0.0110017]
[1763651164860,0.02411,90906.0,90901.0,0.01100097]
[1763651165079,0.2200099,90905.0,90898.0,0.01100134]
[1763651165322,0.2200275,90898.0,90894.0,0.25304775]
[1763651165551,0.01100085,90902.0,90897.0,0.01100146]
[1763651165760,0.02411,90906.0,90900.0,0.0110011]
[1763651165979,0.22001751,90902.0,90899.0,0.23102527]
[1763651166187,0.2200172,90904.0,90898.0,0.01100134]
[1763651166408,0.0110011,90900.0,90888.0,0.22005041]
[1763651166629,0.22001648,90903.0,90893.0,0.01100194]
[1763651166839,0.22004378,90891.0,90887.0,0.22005158]
[1763651167083,0.01100267,90887.0,90877.0,0.05829115]
[1763651167295,0.01100352,90880.0,90871.0,0.1474]
[1763651167466,0.23108319,90877.0,90870.0,0.02200959]
[1763651167677,0.22009136,90872.0,90870.0,0.02200959]
[1763651167876,0.22007659,90878.0,90872.0,0.01100448]
[1763651168092,0.02411,90886.0,90875.0,0.01100412]
[1763651168270,0.01100243,90889.0,90876.0,0.2310841]
[1763651168470,0.02411,90895.0,90881.0,0.22006785]
[1763651168676,0.01193,90889.0,90885.0,0.01100291]
[1763651169044,0.01193,90889.0,90887.0,0.22005347]
[1763651169277,0.05458255,90888.0,90871.0,0.05829115]
[1763651169483,0.05458255,90888.0,90867.0,0.39229624]
[1763651169484,0.22008419,90875.0,90867.0,0.39229624]
[1763651169695,0.22006996,90881.0,90875.0,0.22008134]
[1763651170217,0.22006996,90881.0,90870.0,0.03401432]
[1763651170218,0.22009172,90872.0,90870.0,0.001]
[1763651170422,0.0110057,90862.0,90854.0,0.05829115]
[1763651170628,0.01100715,90850.0,90841.0,0.05829115]
[1763651170831,0.01100763,90846.0,90836.0,0.22017614]
[1763651171046,0.01193,90840.0,90834.0,0.00475008]
[1763651171277,0.0110103,90824.0,90812.0,0.05829115]
[1763651171484,0.0110103,90824.0,90797.0,0.01101357]
[1763651171485,0.01193,90822.0,90809.0,0.23125409]
[1763651171696,0.01193,90822.0,90811.0,0.01101188]
[1763651171898,0.01100909,90834.0,90822.0,0.01101054]
[1763651172108,0.00376,90833.0,90824.0,0.0110103]
[1763651172279,0.00376,90833.0,90803.0,0.33038443]
[1763651172280,0.00376,90832.0,90822.0,0.01101054]
[1763651172518,0.00376,90832.0,90829.0,0.01100969]
[1763651172720,0.00376,90832.0,90826.0,0.01101006]
[1763651172721,0.00376,90832.0,90826.0,0.23120935]
[1763651172923,0.00376,90832.0,90829.0,0.01100969]
[1763651173128,0.00376,90832.0,90830.0,0.22019156]
[1763651173331,0.00376,90832.0,90829.0,0.01100969]
[1763651173533,0.00376,90832.0,90827.0,0.01100994]
[1763651173682,0.00376,90832.0,90829.0,0.01100969]
[1763651174146,0.22019399,90829.0,90824.0,0.0110103]
[1763651174289,0.00376,90832.0,90829.0,0.23120264]
[1763651174487,0.00376,90832.0,90830.0,0.24220115]
[1763651174751,0.00376,90832.0,90830.0,0.24219963]
[1763651175105,0.02411,90843.0,90830.0,0.24219963]
[1763651175106,0.22016094,90843.0,90837.0,0.23118271]
[1763651175343,0.01193,90831.0,90816.0,0.02200959]
[1763651175534,0.00376,90842.0,90839.0,0.23117823]
[1763651175705,0.02411,90858.0,90849.0,0.01100727]
[1763651175904,0.02293509,90867.0,90830.0,0.02200959]
[1763651175905,0.00376,90855.0,90841.0,0.01100824]
[1763651176111,0.00376,90855.0,90830.0,0.02200959]
[1763651176112,0.22014309,90850.0,90830.0,0.02200959]
[1763651176313,0.001,90843.0,90832.0,0.33400933]
[1763651176529,0.001,90843.0,90836.0,0.01100885]
[1763651176714,0.001,90843.0,90839.0,0.01100848]
[1763651177075,0.00376,90842.0,90841.0,0.2201649]
[1763651177606,0.01193,90878.0,90870.0,0.01100473]
[1763651177822,0.01999998,90910.0,90842.0,0.00564]
[1763651177823,0.01193,90881.0,90877.0,0.02200959]
[1763651178019,0.22007971,90877.0,90873.0,0.01100436]
[1763651178219,0.01193,90881.0,90874.0,0.22008495]
[1763651178427,0.22008737,90873.0,90872.0,0.02200959]
[1763651178597,0.01571,90874.0,90856.0,0.323]
[1763651178798,0.23579737,90873.0,90872.0,0.02200959]
[1763651179016,0.22009948,90868.0,90867.0,0.00023606]
[1763651179362,0.25991948,90868.0,90867.0,0.00023606]
[1763651179558,0.03982,90868.0,90867.0,0.00023606]
[1763651179763,0.25991948,90868.0,90867.0,0.00023606]
[1763651180179,0.01100715,90850.0,90838.0,0.0110086]
[1763651180395,0.22015278,90846.0,90845.0,0.02200959]
[1763651180601,0.58316987,90850.0,90816.0,0.05829115]
[1763651180602,0.22022066,90818.0,90816.0,0.05829115]
[1763651180787,0.24694666,90817.0,90795.0,0.00282]
[1763651180984,0.22025703,90803.0,90795.0,0.00282]
[1763651181182,0.01101224,90808.0,90788.0,0.24230176]
[1763651181183,0.22027331,90797.0,90788.0,0.02200959]
[1763651181497,0.00376,90809.0,90806.0,0.01101248]
[1763651181703,0.00376,90809.0,90803.0,0.01101285]
[1763651181909,0.00376,90809.0,90806.0,0.01101248]
[1763651182109,0.00376,90809.0,90806.0,0.23125986]
[1763651182326,0.03512224,90808.0,90793.0,0.01101406]
[1763651182554,0.56840272,90803.0,90794.0,0.01101394]
[1763651182701,0.01101297,90802.0,90798.0,0.01101345]
[1763651182918,0.01101297,90802.0,90785.0,0.22029946]
[1763651182919,0.22028554,90792.0,90785.0,0.22029946]
[1763651183120,0.22028554,90792.0,90774.0,0.08030074]
[1763651183121,0.00376,90792.0,90782.0,0.2203072]
[1763651183328,0.02411,90791.0,90786.0,0.01101491]
[1763651183535,0.02411,90791.0,90781.0,9e-05]
[1763651183738,0.02411,90791.0,90788.0,0.01101467]
[1763651183941,0.02411,90791.0,90781.0,9e-05]
[1763651184621,0.02411,90791.0,90740.0,0.05829115]
[1763651184622,0.01101964,90747.0,90740.0,0.05829115]
[1763651184829,0.01102074,90738.0,90713.0,0.0788569]
[1763651185037,0.01193,90744.0,90680.0,0.4]
[1763651185038,0.01102219,90726.0,90706.0,0.01102462]
[1763651185440,0.01102219,90726.0,90690.0,0.00999999]
[1763651185441,0.00875,90721.0,90702.0,0.01248]
[1763651185644,0.00875,90721.0,90699.0,0.01102547]
[1763651185799,0.00875,90721.0,90709.0,0.01102426]
[1763651186003,0.00875,90721.0,90689.0,0.02200959]
[1763651186004,0.01102499,90703.0,90689.0,0.02200959]
[1763651186213,0.01102499,90703.0,90675.0,0.02576959]
[1763651186214,0.00376,90703.0,90701.0,0.23152996]
[1763651186409,0.00376,90703.0,90702.0,0.00487784]
[1763651186820,0.08948418,90703.0,90702.0,0.00487784]
[1763651186991,0.02787,90703.0,90702.0,0.00487784]
[1763651187501,0.24836987,90703.0,90702.0,0.00487784]
[1763651187702,0.24836987,90703.0,90640.0,0.00999999]
[1763651187703,0.00999999,90690.0,90677.0,0.01102815]
[1763651187917,0.00376,90689.0,90682.0,0.01102754]
[1763651188094,0.57840271,90700.0,90688.0,0.01102681]
[1763651188298,0.57840271,90700.0,90687.0,0.23156496]
[1763651188299,0.01478547,90699.0,90689.0,0.03528587]
[1763651188581,0.01478547,90699.0,90690.0,0.01102657]
[1763651188582,0.00376,90698.0,90690.0,0.01102657]
[1763651188798,0.02411,90699.0,90696.0,0.23154273]
[1763651189007,0.01102596,90695.0,90679.0,0.01102791]
[1763651189246,0.00599217,90695.0,90679.0,0.01102791]
[1763651189459,0.00999999,90690.0,90688.0,0.22053485]
[1763651189663,0.00999999,90690.0,90684.0,0.01094338]
[1763651189879,0.00999999,90680.0,90677.0,0.01102815]
[1763651189999,0.02477,90690.0,90682.0,0.01102754]
[1763651190000,0.03476999,90690.0,90682.0,0.01102754]
[1763651190218,0.01102803,90678.0,90672.0,0.01094338]
[1763651190415,0.00376,90677.0,90674.0,0.02200959]
[1763651190615,0.00376,90677.0,90673.0,0.01102864]
[1763651190616,0.02477,90676.0,90673.0,0.01102864]
[1763651190822,0.02477,90676.0,90669.0,0.01102912]
[1763651191047,0.02477,90676.0,90640.0,0.33097697]
[1763651191048,0.2205986,90663.0,90655.0,0.22061515]
[1763651191305,0.01103156,90649.0,90639.0,0.00475008]
[1763651191503,0.00999999,90650.0,90639.0,0.00475008]
[1763651191504,0.22065313,90640.0,90639.0,0.00475008]
[1763651191709,0.02853,90648.0,90565.0,0.0124]
[1763651191710,0.01103496,90621.0,90565.0,0.0124]
[1763651191923,0.00371,90628.0,90589.0,0.05017419]
[1763651191924,0.00376,90620.0,90589.0,0.05017419]
[1763651192129,0.01375999,90620.0,90590.0,0.0241]
[1763651192292,0.00341,90589.0,90588.0,0.475]
[1763651192496,0.03179578,90589.0,90550.0,0.2]
[1763651192670,0.56840272,90598.0,90550.0,0.2]
[1763651192671,0.01103777,90598.0,90569.0,0.01173]
[1763651192875,0.00999999,90620.0,90569.0,0.01173]
[1763651192876,0.00999999,90610.0,90581.0,0.22079685]
[1763651193088,0.00999999,90610.0,90570.0,0.02495]
[1763651193089,0.05210249,90579.0,90570.0,0.02495]
[1763651193285,0.05210249,90579.0,90571.0,0.02495]
[1763651193517,0.05590249,90579.0,90578.0,0.01655711]
[1763651193712,0.57840271,90590.0,90578.0,0.01655711]
[1763651194066,0.00999999,90590.0,90579.0,0.02519992]
[1763651194269,0.00999999,90590.0,90580.0,0.02772842]
[1763651194490,0.00999999,90590.0,90581.0,0.01128915]
[1763651194630,0.00999999,90590.0,90581.0,0.00024931]
[1763651194835,0.00999999,90600.0,90594.0,0.01103825]
[1763651195045,0.00999999,90600.0,90582.0,0.02495]
[1763651195046,0.0038,90607.0,90604.0,0.01103704]
[1763651195246,0.00999999,90610.0,90601.0,0.0110374]
[1763651195457,0.0038,90609.0,90602.0,0.00023682]
[1763651195662,0.0038,90609.0,90591.0,0.02495]
[1763651195663,0.0038,90609.0,90597.0,0.01103789]
[1763651195861,0.0038,90609.0,90606.0,0.01103679]
[1763651196216,0.57840271,90620.0,90614.0,0.01103582]
[1763651196217,0.00999999,90620.0,90614.0,0.01103582]
[1763651196417,0.00999999,90620.0,90595.0,0.04150711]
[1763651196418,0.0038,90627.0,90619.0,0.01103521]
[1763651196567,0.00999999,90630.0,90620.0,0.22092562]
[1763651196824,0.0038,90629.0,90619.0,0.01173]
[1763651197021,0.0038,90629.0,90612.0,0.02495]
[1763651197022,0.22069827,90622.0,90612.0,0.02495]
[1763651197219,0.0038,90629.0,90613.0,0.00022982]
[1763651197418,0.00999999,90620.0,90613.0,0.01126333]
[1763651197621,0.0038,90629.0,90615.0,0.0110357]
[1763651197858,0.57840271,90630.0,90616.0,0.00022678]
[1763651198024,0.00999999,90620.0,90608.0,0.01173]
[1763651198238,0.00999999,90620.0,90609.0,0.02518165]
[1763651198442,0.00999999,90610.0,90609.0,0.01655711]
[1763651198849,0.00999999,90610.0,90605.0,0.00023438]
[1763651199045,0.22072008,90613.0,90609.0,0.01655711]
[1763651199246,0.00999999,90620.0,90609.0,0.01655711]
[1763651199472,0.00999999,90630.0,90622.0,0.01103484]
[1763651199631,0.00999999,90630.0,90623.0,0.00022433]
[1763651199830,0.00999999,90620.0,90612.0,0.00022406]
[1763651200029,0.22071827,90614.0,90612.0,0.00023042]
[1763651200331,0.22071827,90614.0,90611.0,0.01655711]
[1763651200332,0.57840271,90620.0,90611.0,0.01655711]
[1763651200532,0.22071671,90615.0,90612.0,0.00023073]
[1763651200824,0.22072618,90610.0,90609.0,0.001]
[1763651201028,0.22071509,90617.0,90609.0,0.001]
[1763651201029,0.22070113,90621.0,90614.0,0.01655711]
[1763651201232,0.22070113,90621.0,90609.0,0.001]
[1763651201233,0.22072618,90610.0,90609.0,0.001]
[1763651201450,0.00999999,90610.0,90601.0,0.02495]
[1763651201678,0.01,90650.0,90610.0,0.02495]
[1763651201679,0.22070426,90619.0,90610.0,0.02495]
[1763651201909,0.00977171,90620.0,90604.0,0.01103704]
[1763651202120,0.00977171,90620.0,90611.0,0.00023134]
[1763651202320,0.00977171,90620.0,90600.0,0.01655711]
[1763651202528,0.00977171,90610.0,90600.0,0.01655711]
[1763651202731,0.00977171,90600.0,90591.0,0.02495]
[1763651202937,0.01357171,90610.0,90603.0,0.01103716]
[1763651203143,0.00977171,90630.0,90627.0,0.01103423]
[1763651203363,0.01999999,90670.0,90629.0,0.01655711]
[1763651203364,0.22067216,90633.0,90629.0,0.01655711]
[1763651203537,0.22068535,90627.0,90608.0,0.01103655]
[1763651203739,0.00977171,90630.0,90601.0,0.22074578]
[1763651203740,0.22071592,90615.0,90603.0,0.01103716]
[1763651203947,0.22072067,90613.0,90604.0,0.01103704]
[1763651204151,0.01103545,90617.0,90595.0,0.22076265]
[1763651204396,0.22071491,90615.0,90608.0,0.01103655]
[1763651204602,0.00977171,90620.0,90617.0,0.01103545]
[1763651204814,0.58595326,90650.0,90615.0,0.23727052]
[1763651204815,0.00977171,90630.0,90618.0,0.00022889]
[1763651205031,0.02080558,90630.0,90629.0,0.00216177]
[1763651205228,0.01103387,90630.0,90629.0,0.00216177]
[1763651205697,0.01103387,90630.0,90588.0,0.01103898]
[1763651205698,0.00977171,90620.0,90588.0,0.01103898]
[1763651205916,0.22073873,90605.0,90592.0,0.2207681]
[1763651206115,0.22073394,90607.0,90597.0,0.01103789]
[1763651206343,0.00977171,90610.0,90595.0,0.01103813]
[1763651206344,0.22072862,90609.0,90598.0,0.23179159]
[1763651206542,0.00977171,90610.0,90597.0,0.01103789]
[1763651206824,0.22074399,90603.0,90594.0,0.01103825]
[1763651207069,0.00977171,90610.0,90598.0,0.01103777]
[1763651207288,0.22074315,90604.0,90596.0,0.22075859]
[1763651207503,0.0134196,90604.0,90592.0,0.01173]
[1763651207739,0.0038,90604.0,90597.0,0.01655711]
[1763651208003,0.0038,90604.0,90603.0,0.22074324]
[1763651208417,0.0038,90604.0,90601.0,0.0110374]
[1763651208643,0.0038,90604.0,90603.0,0.22074324]
[1763651209081,0.0038,90604.0,90602.0,0.22074401]
[1763651209290,0.0038,90604.0,90601.0,0.0110374]
[1763651209511,0.0038,90604.0,90602.0,0.22098203]
[1763651209704,0.0038,90604.0,90602.0,0.22074339]
[1763651210019,0.0038,90604.0,90597.0,0.23731294]
[1763651210020,0.0038,90619.0,90618.0,0.01103533]
[1763651210227,0.0038,90629.0,90626.0,0.01103436]
[1763651210425,0.00977171,90630.0,90628.0,0.01655711]
[1763651210630,0.00977171,90630.0,90629.0,0.01173]
[1763651211457,0.00977171,90630.0,90629.0,0.23240991]
[1763651211869,0.00977171,90650.0,90638.0,0.0110329]
[1763651212091,0.00977171,90640.0,90630.0,0.24562581]
[1763651212297,0.00977171,90640.0,90637.0,0.01103302]
[1763651212500,0.00977171,90640.0,90638.0,0.2206565]
[1763651212908,0.00977171,90640.0,90638.0,0.1946565]
[1763651213113,0.00977171,90640.0,90637.0,0.01103302]
[1763651213316,0.00977171,90640.0,90639.0,0.22065556]
[1763651213517,0.00977171,90640.0,90634.0,0.01103338]
[1763651213657,0.00977171,90640.0,90638.0,0.220658]
[1763651213862,0.00977171,90640.0,90637.0,0.01103302]
[1763651214316,0.00977171,90640.0,90638.0,0.22065666]
[1763651214547,0.22065985,90638.0,90631.0,0.2317086]
[1763651214754,0.00977171,90640.0,90603.0,0.01173]
[1763651214961,0.2304266,90640.0,90626.0,0.01655711]
[1763651215161,0.22068218,90629.0,90626.0,0.01655711]
[1763651215303,0.22065864,90638.0,90629.0,0.01103399]
[1763651215525,0.00977171,90630.0,90619.0,0.01103521]
[1763651215720,0.00977171,90630.0,90626.0,0.01655711]
[1763651215981,0.00977171,90630.0,90628.0,0.22068103]
[1763651216181,0.00977171,90630.0,90627.0,0.23171719]
[1763651216513,0.00977171,90630.0,90627.0,0.01103423]
[1763651216629,0.00977171,90630.0,90627.0,0.23171782]
[1763651216837,0.00977171,90630.0,90628.0,0.22068114]
[1763651217039,0.00977171,90630.0,90626.0,0.02759147]
[1763651217240,0.00977171,90630.0,90627.0,0.23194212]
[1763651217448,0.00977171,90630.0,90626.0,0.02759147]
[1763651217652,0.00977171,90630.0,90621.0,0.00023702]
[1763651217653,0.0110346,90624.0,90621.0,0.00023702]
[1763651217856,0.22069696,90622.0,90621.0,0.00023702]
[1763651218715,0.01103423,90627.0,90621.0,0.00023702]
[1763651218716,0.00977171,90630.0,90621.0,0.00023702]
[1763651218918,0.22069683,90623.0,90621.0,0.00023702]
[1763651219141,0.0016,90627.0,90625.0,0.22068784]
[1763651219346,0.0016,90627.0,90626.0,0.01678144]
[1763651219867,0.22069554,90623.0,90621.0,0.00023702]
[1763651220377,0.00977171,90610.0,90604.0,0.00022681]
[1763651220626,0.22073836,90605.0,90603.0,0.00396702]
[1763651220836,0.22073836,90605.0,90565.0,0.09871838]
[1763651220837,0.2207676,90593.0,90575.0,0.22081036]
[1763651221046,0.22078027,90588.0,90586.0,0.01173]
[1763651221252,0.22078027,90588.0,90576.0,0.02495]
[1763651221253,0.22079685,90581.0,90576.0,0.01173]
[1763651221474,0.2208066,90577.0,90576.0,0.01173]
[1763651221662,0.22080498,90578.0,90577.0,0.01655711]
[1763651221791,0.01103947,90584.0,90577.0,0.01655711]
[1763651221987,0.01103825,90594.0,90583.0,0.01103959]
[1763651222195,0.22080416,90578.0,90577.0,0.01655711]
[1763651222409,0.0110402,90578.0,90562.0,0.01655711]
[1763651222610,0.0110402,90578.0,90566.0,0.2208323]
[1763651222611,0.22081926,90572.0,90566.0,0.2208323]
[1763651222816,0.0110413,90569.0,90561.0,0.01128]
[1763651223050,0.22088113,90547.0,90545.0,0.0010114]
[1763651223288,0.0038,90546.0,90545.0,0.0010114]
[1763651223515,0.09473812,90546.0,90545.0,0.0010114]
[1763651223966,0.0038,90546.0,90545.0,0.0010114]
[1763651224180,0.02035711,90546.0,90545.0,0.0010114]
[1763651224412,0.01104191,90564.0,90545.0,0.0010114]
[1763651224620,0.58151255,90560.0,90550.0,0.01104362]
[1763651224839,0.57174084,90560.0,90556.0,0.01104289]
[1763651225050,0.00977171,90580.0,90566.0,0.01104167]
[1763651225270,0.01104081,90573.0,90561.0,0.22084353]
[1763651225485,0.00977171,90570.0,90565.0,0.22083586]
[1763651225716,0.58151255,90580.0,90574.0,0.01104069]
[1763651225935,0.0038,90579.0,90572.0,0.22081698]
[1763651226161,0.2318489,90577.0,90564.0,0.01104191]
[1763651226383,0.2318489,90577.0,90531.0,0.44183579]
[1763651226384,0.23191538,90551.0,90535.0,0.01113545]
[1763651226604,0.0038,90550.0,90546.0,0.02760122]
[1763651226812,0.0038,90550.0,90540.0,0.01104484]
[1763651227091,0.22088188,90547.0,90539.0,0.02]
[1763651227304,0.00977171,90560.0,90546.0,0.01655711]
[1763651227514,0.00977171,90560.0,90553.0,0.01104325]
[1763651227725,0.00977171,90560.0,90554.0,0.00026668]
[1763651227726,0.0038,90559.0,90554.0,0.00026668]
[1763651227952,0.01104264,90558.0,90546.0,0.01655711]
[1763651228169,0.01104325,90553.0,90545.0,0.0010114]
[1763651228389,0.22088171,90547.0,90545.0,0.0010114]
[1763651229024,0.06847175,90546.0,90545.0,0.0010114]
[1763651229246,0.00977171,90560.0,90545.0,0.0010114]
[1763651229464,0.2208822,90546.0,90545.0,0.0010114]
[1763651229883,0.22087553,90549.0,90545.0,0.0010114]
[1763651230095,0.22087,90551.0,90545.0,0.0010114]
[1763651230294,0.2208822,90546.0,90545.0,0.0010114]
[1763651230589,0.22087957,90548.0,90545.0,0.0010114]
[1763651230892,0.22088179,90547.0,90545.0,0.0010114]
[1763651231248,0.2380922,90547.0,90545.0,0.0010114]
[1763651231924,0.22088179,90547.0,90545.0,0.0010114]
[1763651232299,0.22088179,90547.0,90546.0,0.00222403]
[1763651232501,0.22088179,90547.0,90545.0,0.00023543]
[1763651232908,0.22188179,90547.0,90545.0,0.00023543]
[1763651233205,0.0038,90546.0,90545.0,0.00023543]
[1763651233383,0.0038,90546.0,90539.0,0.02]
[1763651233384,0.22089684,90540.0,90539.0,0.02]
[1763651233702,0.2209188,90531.0,90507.0,0.01104886]
[1763651233904,0.22091822,90532.0,90513.0,0.01104813]
[1763651234121,0.2247188,90531.0,90523.0,0.01104691]
[1763651234263,0.0038,90531.0,90513.0,0.01104813]
[1763651234466,0.0038,90531.0,90507.0,0.02491]
[1763651234467,0.0038,90531.0,90529.0,0.22092222]
[1763651234691,0.73000599,90540.0,90528.0,0.0110463]
[1763651234895,0.01077171,90540.0,90501.0,0.323]
[1763651235092,0.00977171,90530.0,90518.0,0.01104752]
[1763651235303,0.00977171,90540.0,90529.0,0.01655711]
[1763651235520,0.01104569,90533.0,90530.0,0.01655711]
[1763651235857,0.01104533,90536.0,90515.0,0.01655711]
[1763651235858,0.01484496,90539.0,90515.0,0.01655711]
[1763651236062,0.0038,90539.0,90531.0,0.01655711]
[1763651236352,0.0038,90538.0,90531.0,0.01655711]
[1763651236562,0.01484508,90538.0,90517.0,0.01104764]
[1763651236747,0.0038,90538.0,90532.0,0.01655711]
[1763651236949,0.00977171,90530.0,90527.0,0.01104642]
[1763651237174,0.00977171,90530.0,90517.0,0.01104764]
[1763651237312,0.0038,90538.0,90518.0,0.02760463]
[1763651237515,0.00977171,90530.0,90525.0,0.01104667]
[1763651237718,0.00977171,90530.0,90526.0,0.23197755]
[1763651237958,0.00977171,90530.0,90529.0,0.01128]
[1763651238191,0.22092368,90529.0,90515.0,0.02491]
[1763651238392,0.22092368,90529.0,90500.0,10.06199352]
[1763651238393,0.22094808,90519.0,90504.0,0.01104923]
[1763651238594,0.2209366,90524.0,90507.0,0.01104886]
[1763651238768,0.00977171,90520.0,90508.0,0.01104874]
[1763651238970,0.00977171,90520.0,90517.0,0.01655711]
[1763651239315,0.00977171,90530.0,90519.0,0.01642]
[1763651239530,0.00977171,90530.0,90501.0,0.33148476]
[1763651239531,0.01104679,90524.0,90505.0,0.00228]
[1763651239734,0.22095052,90518.0,90517.0,0.01655711]
[1763651239948,0.0038,90518.0,90505.0,0.00228]
[1763651240135,0.22094921,90519.0,90505.0,0.00228]
[1763651240334,0.0016,90511.0,90508.0,0.01104874]
[1763651240576,0.0016,90511.0,90509.0,0.22097125]
[1763651240806,0.0016,90511.0,90510.0,0.01642]
[1763651241016,0.0016,90511.0,90510.0,0.04133]
[1763651241696,0.01104899,90506.0,90500.0,10.06199352]
[1763651241892,0.00977171,90510.0,90500.0,10.06199352]
[1763651241893,0.22099203,90501.0,90500.0,10.06199352]
[1763651242144,0.22097249,90509.0,90500.0,10.08690352]
[1763651242352,0.0016,90511.0,90507.0,0.01104886]
[1763651242551,0.0016,90511.0,90510.0,0.01642]
[1763651242753,0.0016,90511.0,90509.0,0.01128]
[1763651242950,0.2225693,90511.0,90509.0,0.01128]
[1763651243153,0.0016,90511.0,90510.0,0.26230005]
[1763651243354,0.0016,90511.0,90510.0,0.04133]
[1763651244742,0.00977171,90530.0,90527.0,0.01104642]
[1763651244940,0.00977171,90530.0,90518.0,0.01104752]
[1763651244941,0.0038,90539.0,90529.0,0.0277]
[1763651245126,0.0038,90539.0,90535.0,0.01104545]
[1763651245337,0.22090694,90536.0,90529.0,0.0277]
[1763651245662,0.0038,90539.0,90534.0,0.01104557]
[1763651245880,0.22088762,90544.0,90538.0,0.01642]
[1763651245881,0.22088708,90544.0,90538.0,0.01642]
[1763651246087,0.0038,90539.0,90538.0,0.01642]
[1763651246295,0.22092124,90530.0,90529.0,0.01128]
[1763651246831,0.22092126,90530.0,90526.0,0.01128]
[1763651247038,0.2209263,90528.0,90526.0,0.01128]
[1763651247155,0.2209263,90528.0,90512.0,0.02491]
[1763651247156,0.22094345,90521.0,90512.0,0.02491]
[1763651247352,0.22094345,90521.0,90520.0,0.01655711]
[1763651247602,0.22094023,90523.0,90520.0,0.01655711]
[1763651247797,0.00977171,90530.0,90520.0,0.01655711]
[1763651248060,0.4417527,90549.0,90520.0,0.01655711]
[1763651248061,0.08957643,90548.0,90546.0,0.22088031]
[1763651248284,0.08957643,90548.0,90547.0,0.37293673]
[1763651248488,0.0396397,90548.0,90547.0,0.38293673]
[1763651248688,0.0038,90583.0,90577.0,0.01104033]
[1763651248901,0.0038,90583.0,90566.0,0.01104167]
[1763651249102,0.22078223,90587.0,90568.0,0.01104142]
[1763651249302,0.0038,90589.0,90568.0,0.01104142]
[1763651249480,0.0038,90589.0,90547.0,0.01282467]
[1763651249704,0.03139716,90589.0,90579.0,0.01104008]
[1763651249906,0.03139716,90589.0,90578.0,0.22080193]
[1763651249907,0.03139716,90589.0,90585.0,0.01655711]
[1763651250309,0.01103764,90599.0,90585.0,0.01655711]
[1763651250310,0.01204,90599.0,90585.0,0.01655711]
[1763651250453,0.22076029,90596.0,90585.0,0.01655711]
[1763651250670,0.2245441,90603.0,90585.0,0.01103935]
[1763651250867,0.2245441,90603.0,90584.0,0.01103947]
[1763651250868,0.0038,90603.0,90584.0,0.01103947]
[1763651251065,0.01204,90586.0,90561.0,0.05210249]
[1763651251248,0.01483716,90603.0,90593.0,0.01103838]
[1763651251249,0.0038,90603.0,90593.0,0.01103838]
[1763651251459,0.0038,90603.0,90587.0,0.01103911]
[1763651251460,0.22075654,90598.0,90587.0,0.01103911]
[1763651251664,0.0038,90603.0,90593.0,0.01103838]
[1763651251862,0.0038,90603.0,90600.0,0.01103752]
[1763651252105,0.01731003,90635.0,90591.0,0.323]
[1763651252106,0.22068266,90628.0,90591.0,0.323]
[1763651252241,0.03138498,90629.0,90581.0,0.05210249]
[1763651252242,0.05108559,90627.0,90612.0,0.22072131]
[1763651252445,0.05108559,90627.0,90617.0,0.01103545]
[1763651252668,0.05108559,90627.0,90615.0,0.0110357]
[1763651252872,0.05108559,90627.0,90611.0,0.01103618]
[1763651253072,0.22068753,90626.0,90610.0,0.0110363]
[1763651253302,0.0038,90630.0,90614.0,0.01103582]
[1763651253518,0.0038,90630.0,90619.0,0.01103521]
[1763651253724,0.00316067,90637.0,90625.0,0.23172413]
[1763651253919,0.00316067,90637.0,90620.0,0.01103509]
[1763651253920,0.22067496,90632.0,90620.0,0.01103509]